[Event "Live Chess"]
[Site "Chess.com"]
[Date "2024.06.02"]
[Round "-"]
[White "nigelst"]
[Black "best137"]
[Result "1-0"]
[WhiteElo "1734"]
[BlackElo "1523"]
[TimeControl "300"]
[EndTime "2:31:40 PDT"]
[Termination "nigelst won on time"]

1. e4 {[%clk 0:04:58.5]} 1... c6 {[%clk 0:04:58.4]} 2. d4 {[%clk 0:04:56.5]}
2... d5 {[%clk 0:04:57.8]} 3. exd5 {[%clk 0:04:54.9]} 3... cxd5 {[%clk
0:04:56.9]} 4. Nf3 {[%clk 0:04:51.5]} 4... Nc6 {[%clk 0:04:55.7]} 5. Bb5 {[%clk
0:04:45.9]} 5... Nf6 {[%clk 0:04:53.1]} 6. O-O {[%clk 0:04:43.1]} 6... Bg4
{[%clk 0:04:50.2]} 7. Qd3 {[%clk 0:04:38.3]} 7... Bxf3 {[%clk 0:04:39]} 8. Qxf3
{[%clk 0:04:35.7]} 8... a6 {[%clk 0:04:35]} 9. Bxc6+ {[%clk 0:04:32.4]} 9...
bxc6 {[%clk 0:04:33.4]} 10. Bf4 {[%clk 0:04:26.8]} 10... e6 {[%clk 0:04:22.4]}
11. Nd2 {[%clk 0:04:19.7]} 11... Bd6 {[%clk 0:04:11.3]} 12. Bxd6 {[%clk
0:04:17.3]} 12... Qxd6 {[%clk 0:04:08.8]} 13. c3 {[%clk 0:04:14.3]} 13... O-O
{[%clk 0:04:07.2]} 14. Qg3 {[%clk 0:04:09.8]} 14... Qxg3 {[%clk 0:04:03.8]} 15.
hxg3 {[%clk 0:04:07.2]} 15... Rab8 {[%clk 0:03:59.3]} 16. b3 {[%clk 0:03:59.2]}
16... Rfc8 {[%clk 0:03:53.1]} 17. Rfe1 {[%clk 0:03:57.5]} 17... c5 {[%clk
0:03:51]} 18. dxc5 {[%clk 0:03:54.7]} 18... Rxc5 {[%clk 0:03:49]} 19. c4 {[%clk
0:03:53.3]} 19... h5 {[%clk 0:03:25.2]} 20. cxd5 {[%clk 0:03:50.5]} 20... Rxd5
{[%clk 0:03:14.9]} 21. Nc4 {[%clk 0:03:46.4]} 21... a5 {[%clk 0:03:01.9]} 22.
Ne5 {[%clk 0:03:36.1]} 22... Kf8 {[%clk 0:02:29.1]} 23. Rad1 {[%clk 0:03:29.4]}
23... Rbd8 {[%clk 0:02:23.1]} 24. Rxd5 {[%clk 0:03:25.6]} 24... Rxd5 {[%clk
0:02:18.2]} 25. Nc4 {[%clk 0:03:15.4]} 25... Ke7 {[%clk 0:01:55.2]} 26. Rc1
{[%clk 0:02:56]} 26... Ng4 {[%clk 0:01:45.7]} 27. f3 {[%clk 0:02:39.2]} 27...
Ne5 {[%clk 0:01:43]} 28. Nxe5 {[%clk 0:02:24.9]} 28... Rxe5 {[%clk 0:01:42.9]}
29. Kf2 {[%clk 0:02:23.4]} 29... Kf6 {[%clk 0:01:30.2]} 30. Rc4 {[%clk
0:02:17.3]} 30... g5 {[%clk 0:01:18.7]} 31. f4 {[%clk 0:02:13.1]} 31... Rd5
{[%clk 0:01:14]} 32. Ke2 {[%clk 0:02:05.4]} 32... Kf5 {[%clk 0:00:56.2]} 33. Ke3
{[%clk 0:01:43.2]} 33... g4 {[%clk 0:00:54.1]} 34. Rc7 {[%clk 0:01:39.2]} 34...
f6 {[%clk 0:00:51.6]} 35. Rh7 {[%clk 0:01:36]} 35... Kg6 {[%clk 0:00:49.8]} 36.
Re7 {[%clk 0:01:33]} 36... Kf5 {[%clk 0:00:45.1]} 37. Rh7 {[%clk 0:01:31.5]}
37... Kg6 {[%clk 0:00:44.1]} 38. Re7 {[%clk 0:01:30]} 38... Kf5 {[%clk
0:00:43.2]} 39. Ra7 {[%clk 0:01:21]} 39... e5 {[%clk 0:00:39.2]} 40. Re7 {[%clk
0:01:14.7]} 40... Rc5 {[%clk 0:00:30]} 41. Kd3 {[%clk 0:01:04.2]} 41... exf4
{[%clk 0:00:26.5]} 42. gxf4 {[%clk 0:00:57.5]} 42... Kxf4 {[%clk 0:00:26.4]} 43.
Kd4 {[%clk 0:00:50.5]} 43... Re5 {[%clk 0:00:24]} 44. Rf7 {[%clk 0:00:47.6]}
44... Re6 {[%clk 0:00:19.3]} 45. Kd5 {[%clk 0:00:43.2]} 45... Ra6 {[%clk
0:00:12.6]} 46. Rh7 {[%clk 0:00:35.7]} 46... Kg5 {[%clk 0:00:10.9]} 47. g3
{[%clk 0:00:31.4]} 47... f5 {[%clk 0:00:07.6]} 48. Ke5 {[%clk 0:00:25.9]} 48...
Rg6 {[%clk 0:00:04.8]} 49. Ra7 {[%clk 0:00:23]} 49... h4 {[%clk 0:00:02.3]} 50.
gxh4+ {[%clk 0:00:19.8]} 50... Kxh4 {[%clk 0:00:02.2]} 51. Kxf5 {[%clk
0:00:14.9]} 51... Rg5+ {[%clk 0:00:01.9]} 52. Kf4 {[%clk 0:00:13.4]} 52... Rh5
{[%clk 0:00:01.2]} 53. Rg7 {[%clk 0:00:09.1]} 53... g3 {[%clk 0:00:00.8]} 54.
Rg4+ {[%clk 0:00:04.7]} 1-0

[Event "Live Chess"]
[Site "Chess.com"]
[Date "2024.06.02"]
[Round "-"]
[White "AlexanderMatlak"]
[Black "Ninifu"]
[Result "1-0"]
[WhiteElo "2409"]
[BlackElo "2009"]
[TimeControl "300"]
[EndTime "2:31:54 PDT"]
[Termination "AlexanderMatlak won by resignation"]

1. e4 {[%clk 0:04:55.9]} 1... d5 {[%clk 0:04:57.1]} 2. exd5 {[%clk 0:04:55.8]}
2... Nf6 {[%clk 0:04:56.5]} 3. Bb5+ {[%clk 0:04:54]} 3... Nbd7 {[%clk
0:04:54.9]} 4. Nc3 {[%clk 0:04:51.9]} 4... a6 {[%clk 0:04:51.7]} 5. Be2 {[%clk
0:04:50.7]} 5... Nb6 {[%clk 0:04:49.2]} 6. d4 {[%clk 0:04:49.9]} 6... Nbxd5
{[%clk 0:04:45.7]} 7. Nxd5 {[%clk 0:04:49.8]} 7... Nxd5 {[%clk 0:04:44.5]} 8.
Nf3 {[%clk 0:04:49.2]} 8... e6 {[%clk 0:04:37.9]} 9. O-O {[%clk 0:04:46.2]} 9...
Be7 {[%clk 0:04:33]} 10. c4 {[%clk 0:04:45.3]} 10... Nf6 {[%clk 0:04:31.8]} 11.
Bf4 {[%clk 0:04:42.5]} 11... O-O {[%clk 0:04:30.3]} 12. Qc2 {[%clk 0:04:29.9]}
12... b6 {[%clk 0:04:28.8]} 13. Rad1 {[%clk 0:04:21]} 13... Bb7 {[%clk
0:04:27.6]} 14. Ne5 {[%clk 0:04:20.4]} 14... Qc8 {[%clk 0:03:56.1]} 15. Bf3
{[%clk 0:04:18]} 15... Bxf3 {[%clk 0:03:50.5]} 16. Nxf3 {[%clk 0:04:17.7]} 16...
Qb7 {[%clk 0:03:49]} 17. Rfe1 {[%clk 0:04:12.7]} 17... Rac8 {[%clk 0:03:47.9]}
18. d5 {[%clk 0:04:11.6]} 18... Bb4 {[%clk 0:03:26.3]} 19. dxe6 {[%clk
0:03:59.5]} 19... Bxe1 {[%clk 0:03:14.9]} 20. exf7+ {[%clk 0:03:59.4]} 20...
Rxf7 {[%clk 0:03:04.5]} 21. Rxe1 {[%clk 0:03:59.3]} 21... Rff8 {[%clk
0:02:48.4]} 22. c5 {[%clk 0:03:50.1]} 22... Qd5 {[%clk 0:02:38.8]} 23. c6 {[%clk
0:03:28.3]} 23... Rfe8 {[%clk 0:02:31.7]} 24. Rd1 {[%clk 0:03:19.3]} 24... Qe4
{[%clk 0:02:30]} 25. Qc1 {[%clk 0:03:14.6]} 25... Nd5 {[%clk 0:02:00.5]} 26. Bg3
{[%clk 0:03:07.1]} 26... Nb4 {[%clk 0:01:40.7]} 27. Qc3 {[%clk 0:01:46.3]} 27...
Rcd8 {[%clk 0:01:21.5]} 28. Rf1 {[%clk 0:01:35.9]} 28... Rd3 {[%clk 0:01:08]}
29. Qc1 {[%clk 0:01:28.5]} 29... Nxc6 {[%clk 0:01:00.8]} 30. Ng5 {[%clk
0:01:15.5]} 30... Qd5 {[%clk 0:00:49.4]} 31. h4 {[%clk 0:01:14.5]} 31... Nd4
{[%clk 0:00:46.9]} 32. Qxc7 {[%clk 0:01:09.6]} 32... h6 {[%clk 0:00:32.6]} 33.
Nh3 {[%clk 0:01:07.1]} 33... Rf8 {[%clk 0:00:19.2]} 34. Nf4 {[%clk 0:01:03.4]}
34... Qc6 {[%clk 0:00:10.1]} 35. Qxc6 {[%clk 0:01:01]} 35... Nxc6 {[%clk
0:00:09.6]} 36. Nxd3 {[%clk 0:01:00.2]} 1-0

[Event "Live Chess"]
[Site "Chess.com"]
[Date "2024.06.02"]
[Round "-"]
[White "KeithArkell"]
[Black "GwaryTek"]
[Result "1-0"]
[WhiteElo "2415"]
[BlackElo "1895"]
[TimeControl "300"]
[EndTime "2:31:54 PDT"]
[Termination "KeithArkell won by resignation"]

1. d4 {[%clk 0:04:55.6]} 1... Nf6 {[%clk 0:04:58.4]} 2. Nf3 {[%clk 0:04:53.8]}
2... d6 {[%clk 0:04:58.1]} 3. c4 {[%clk 0:04:52.7]} 3... Nbd7 {[%clk 0:04:57.3]}
4. d5 {[%clk 0:04:51.8]} 4... e5 {[%clk 0:04:57]} 5. dxe6 {[%clk 0:04:50.5]}
5... fxe6 {[%clk 0:04:55.8]} 6. Nc3 {[%clk 0:04:50.4]} 6... g6 {[%clk
0:04:53.5]} 7. g3 {[%clk 0:04:50.3]} 7... Bg7 {[%clk 0:04:52.8]} 8. Bh3 {[%clk
0:04:49.8]} 8... Nc5 {[%clk 0:04:45.6]} 9. Be3 {[%clk 0:04:46.4]} 9... O-O
{[%clk 0:04:24.4]} 10. Bxc5 {[%clk 0:04:44.2]} 10... dxc5 {[%clk 0:04:24.3]} 11.
Qxd8 {[%clk 0:04:42.9]} 11... Rxd8 {[%clk 0:04:23.9]} 12. Ng5 {[%clk 0:04:38.1]}
12... Re8 {[%clk 0:04:20.8]} 13. Nb5 {[%clk 0:04:36]} 13... h6 {[%clk
0:04:16.4]} 14. Nxc7 {[%clk 0:04:35]} 14... hxg5 {[%clk 0:04:10.6]} 15. Nxa8
{[%clk 0:04:34]} 15... Ne4 {[%clk 0:04:09.5]} 16. O-O {[%clk 0:04:25.9]} 16...
Bxb2 {[%clk 0:04:06.8]} 17. Rad1 {[%clk 0:04:24.9]} 17... Be5 {[%clk 0:03:59.8]}
18. Bg2 {[%clk 0:04:20.9]} 18... Nf6 {[%clk 0:02:42.2]} 19. Rb1 {[%clk
0:04:11.7]} 1-0

[Event "Live Chess"]
[Site "Chess.com"]
[Date "2024.06.02"]
[Round "-"]
[White "Queensandpawns"]
[Black "TedUdale"]
[Result "1-0"]
[WhiteElo "2282"]
[BlackElo "2109"]
[TimeControl "300"]
[EndTime "2:32:07 PDT"]
[Termination "Queensandpawns won on time"]

1. e4 {[%clk 0:04:59.4]} 1... c5 {[%clk 0:04:57.6]} 2. d4 {[%clk 0:04:58.5]}
2... cxd4 {[%clk 0:04:56.3]} 3. c3 {[%clk 0:04:58.4]} 3... Nc6 {[%clk 0:04:55]}
4. Nf3 {[%clk 0:04:57.5]} 4... d5 {[%clk 0:04:51.8]} 5. e5 {[%clk 0:04:56.4]}
5... Bf5 {[%clk 0:04:50.3]} 6. cxd4 {[%clk 0:04:55.9]} 6... e6 {[%clk
0:04:49.3]} 7. Nc3 {[%clk 0:04:54.3]} 7... Bb4 {[%clk 0:04:47.7]} 8. Bd3 {[%clk
0:04:53.7]} 8... Nge7 {[%clk 0:04:46.4]} 9. O-O {[%clk 0:04:53.3]} 9... O-O
{[%clk 0:04:44.4]} 10. a3 {[%clk 0:04:51.5]} 10... Bxc3 {[%clk 0:04:40]} 11.
bxc3 {[%clk 0:04:51.4]} 11... Rc8 {[%clk 0:04:38.9]} 12. Bg5 {[%clk 0:04:50.7]}
12... Qd7 {[%clk 0:04:34.6]} 13. Rc1 {[%clk 0:04:40.5]} 13... Na5 {[%clk
0:04:30.6]} 14. Nh4 {[%clk 0:04:37.7]} 14... Bxd3 {[%clk 0:04:26.5]} 15. Qxd3
{[%clk 0:04:37.6]} 15... Nc4 {[%clk 0:04:19.6]} 16. Qg3 {[%clk 0:04:34.8]} 16...
Ng6 {[%clk 0:04:09.9]} 17. f4 {[%clk 0:04:32.4]} 17... Nd2 {[%clk 0:04:04.1]}
18. f5 {[%clk 0:04:21.2]} 18... Nxf1 {[%clk 0:03:54.6]} 19. Rxf1 {[%clk
0:04:21.1]} 19... Nxh4 {[%clk 0:03:49.6]} 20. Qxh4 {[%clk 0:04:20.1]} 20... exf5
{[%clk 0:03:46]} 21. Rf4 {[%clk 0:03:48]} 21... Rxc3 {[%clk 0:03:29.4]} 22. Bf6
{[%clk 0:03:42.4]} 22... Qb5 {[%clk 0:02:56.6]} 23. Qg5 {[%clk 0:03:14.1]} 23...
Rc1+ {[%clk 0:02:44.3]} 24. Kf2 {[%clk 0:03:11.5]} 24... Qf1+ {[%clk 0:02:38]}
25. Kg3 {[%clk 0:03:09.2]} 25... Rc3+ {[%clk 0:02:33.3]} 26. Kh4 {[%clk
0:03:01.4]} 26... Qe1+ {[%clk 0:02:20.7]} 27. g3 {[%clk 0:02:59.6]} 27... Rxg3
{[%clk 0:02:00]} 28. Qxg3 {[%clk 0:02:59.5]} 28... Qxg3+ {[%clk 0:01:58.3]} 29.
hxg3 {[%clk 0:02:44.7]} 29... gxf6 {[%clk 0:01:56.9]} 30. exf6 {[%clk
0:02:43.8]} 30... Re8 {[%clk 0:01:52]} 31. Rxf5 {[%clk 0:02:43.7]} 31... Re4+
{[%clk 0:01:51]} 32. Kg5 {[%clk 0:02:21]} 32... Rxd4 {[%clk 0:01:47.1]} 33. Kh6
{[%clk 0:02:14.5]} 33... Rd1 {[%clk 0:01:21.5]} 34. Re5 {[%clk 0:02:13.2]} 34...
Rh1+ {[%clk 0:01:20.2]} 35. Kg5 {[%clk 0:02:11.8]} 35... h6+ {[%clk 0:01:19.5]}
36. Kg4 {[%clk 0:02:06.4]} 36... d4 {[%clk 0:01:14.4]} 37. Rd5 {[%clk
0:02:04.1]} 37... Rd1 {[%clk 0:01:10.2]} 38. Rd7 {[%clk 0:01:59.6]} 38... d3
{[%clk 0:00:48.6]} 39. Rxb7 {[%clk 0:01:36.4]} 39... d2 {[%clk 0:00:47.1]} 40.
Rd7 {[%clk 0:01:36.2]} 40... Kh7 {[%clk 0:00:38.1]} 41. Rxf7+ {[%clk 0:01:21.1]}
41... Kg6 {[%clk 0:00:37.4]} 42. Rd7 {[%clk 0:01:20.8]} 42... Kxf6 {[%clk
0:00:36.7]} 43. Kf3 {[%clk 0:01:20.4]} 43... Rf1+ {[%clk 0:00:32.5]} 44. Ke2
{[%clk 0:01:19.8]} 44... d1=Q+ {[%clk 0:00:22.4]} 45. Rxd1 {[%clk 0:01:18.9]}
45... Rxd1 {[%clk 0:00:21.6]} 46. Kxd1 {[%clk 0:01:18.8]} 46... Kg5 {[%clk
0:00:20.6]} 47. Ke2 {[%clk 0:01:18.7]} 47... Kf5 {[%clk 0:00:15.7]} 48. Kf3
{[%clk 0:01:18.1]} 48... h5 {[%clk 0:00:13.9]} 49. Kg2 {[%clk 0:01:17.3]} 49...
a5 {[%clk 0:00:12]} 50. Kh3 {[%clk 0:01:16.3]} 50... a4 {[%clk 0:00:09.6]} 51.
Kh4 {[%clk 0:01:14.2]} 51... Kg6 {[%clk 0:00:09]} 52. Kh3 {[%clk 0:01:13.5]}
52... Kg5 {[%clk 0:00:08.2]} 53. Kg2 {[%clk 0:01:13.4]} 53... Kg4 {[%clk
0:00:07.3]} 54. Kf2 {[%clk 0:01:11.1]} 54... Kf5 {[%clk 0:00:05.1]} 55. Kf3
{[%clk 0:01:10.6]} 55... Ke5 {[%clk 0:00:04.6]} 56. Kg2 {[%clk 0:01:09.3]} 56...
Kd4 {[%clk 0:00:03.4]} 57. Kh3 {[%clk 0:01:08.8]} 57... Kc3 {[%clk 0:00:03]} 58.
Kh4 {[%clk 0:01:08.7]} 58... Kb3 {[%clk 0:00:02.6]} 59. Kxh5 {[%clk 0:01:08.6]}
59... Kxa3 {[%clk 0:00:02.5]} 60. g4 {[%clk 0:01:08.5]} 60... Kb2 {[%clk
0:00:02.4]} 61. g5 {[%clk 0:01:08.4]} 61... a3 {[%clk 0:00:02.3]} 62. g6 {[%clk
0:01:08.3]} 62... a2 {[%clk 0:00:02.2]} 63. g7 {[%clk 0:01:08.2]} 63... a1=Q
{[%clk 0:00:02]} 64. g8=Q {[%clk 0:01:08]} 64... Kb1 {[%clk 0:00:01.9]} 65. Qg1+
{[%clk 0:01:06.1]} 65... Ka2 {[%clk 0:00:01.3]} 66. Qa7+ {[%clk 0:01:05.2]}
66... Kb1 {[%clk 0:00:00.6]} 67. Qb7+ {[%clk 0:01:04.7]} 67... Ka2 {[%clk
0:00:00.5]} 68. Qa6+ {[%clk 0:01:03.6]} 68... Kb1 {[%clk 0:00:00.4]} 69. Qb5+
{[%clk 0:01:03.2]} 69... Qb2 {[%clk 0:00:00.3]} 70. Qf1+ {[%clk 0:01:02.3]} 1-0

[Event "Live Chess"]
[Site "Chess.com"]
[Date "2024.06.02"]
[Round "-"]
[White "GoldsmanB"]
[Black "TigerTank70"]
[Result "0-1"]
[WhiteElo "1102"]
[BlackElo "2229"]
[TimeControl "300"]
[EndTime "2:32:07 PDT"]
[Termination "TigerTank70 won by resignation"]

1. d3 {[%clk 0:04:59]} 1... e5 {[%clk 0:04:57.8]} 2. e4 {[%clk 0:04:57.1]} 2...
Nf6 {[%clk 0:04:55.1]} 3. Nf3 {[%clk 0:04:56.3]} 3... Nc6 {[%clk 0:04:53.4]} 4.
Be3 {[%clk 0:04:51.7]} 4... d5 {[%clk 0:04:52.3]} 5. exd5 {[%clk 0:04:48.9]}
5... Nxd5 {[%clk 0:04:51.9]} 6. d4 {[%clk 0:04:46.7]} 6... e4 {[%clk 0:04:50.7]}
7. Ne5 {[%clk 0:04:44.3]} 7... Nxe3 {[%clk 0:04:43.4]} 8. fxe3 {[%clk
0:04:38.3]} 8... Qh4+ {[%clk 0:04:42.3]} 9. g3 {[%clk 0:04:34.7]} 9... Qh6
{[%clk 0:04:40]} 10. Nxc6 {[%clk 0:04:32.7]} 10... Qxe3+ {[%clk 0:04:37.3]} 11.
Qe2 {[%clk 0:04:27]} 11... Qxe2+ {[%clk 0:04:27.9]} 12. Bxe2 {[%clk 0:04:26.9]}
12... bxc6 {[%clk 0:04:27.1]} 13. Nc3 {[%clk 0:04:25.7]} 13... f5 {[%clk
0:04:24.9]} 14. O-O-O {[%clk 0:04:23.2]} 14... Bb4 {[%clk 0:04:21.6]} 15. Rhf1
{[%clk 0:04:21.6]} 15... Bxc3 {[%clk 0:04:17.4]} 16. bxc3 {[%clk 0:04:21.5]}
16... g6 {[%clk 0:04:15.6]} 17. h3 {[%clk 0:04:15.7]} 17... Be6 {[%clk
0:04:14.4]} 18. Rf4 {[%clk 0:04:11.2]} 18... Rb8 {[%clk 0:04:11.9]} 19. a3
{[%clk 0:04:07]} 19... Rb6 {[%clk 0:04:06.6]} 20. Kd2 {[%clk 0:04:05]} 20... Ke7
{[%clk 0:04:03.4]} 21. g4 {[%clk 0:04:01]} 21... g5 {[%clk 0:04:00.1]} 22. Rf2
{[%clk 0:03:54.9]} 22... f4 {[%clk 0:03:58.9]} 23. Ke1 {[%clk 0:03:44.6]} 23...
Rb2 {[%clk 0:03:54.9]} 24. Rc1 {[%clk 0:03:42]} 24... Rd8 {[%clk 0:03:39.6]} 25.
Bf1 {[%clk 0:03:32.4]} 25... h6 {[%clk 0:03:37.9]} 26. Re2 {[%clk 0:03:30.9]}
26... e3 {[%clk 0:03:34.5]} 27. Rh2 {[%clk 0:03:21.7]} 27... c5 {[%clk
0:03:23.5]} 28. Bd3 {[%clk 0:03:18.7]} 28... cxd4 {[%clk 0:03:21.7]} 29. cxd4
{[%clk 0:03:17.6]} 29... Rxd4 {[%clk 0:03:20.5]} 30. Rd1 {[%clk 0:03:16.4]}
30... f3 {[%clk 0:03:12.8]} 0-1

[Event "Live Chess"]
[Site "Chess.com"]
[Date "2024.06.02"]
[Round "-"]
[White "crais6"]
[Black "Zhevzh1k7"]
[Result "1-0"]
[WhiteElo "1605"]
[BlackElo "1107"]
[TimeControl "300"]
[EndTime "2:32:15 PDT"]
[Termination "crais6 won by resignation"]

1. d4 {[%clk 0:04:56.5]} 1... Nf6 {[%clk 0:04:58.4]} 2. Nc3 {[%clk 0:04:55]}
2... e6 {[%clk 0:04:53.5]} 3. Bf4 {[%clk 0:04:52.8]} 3... d5 {[%clk 0:04:50.1]}
4. e3 {[%clk 0:04:51.3]} 4... Bd6 {[%clk 0:04:47.9]} 5. Bg3 {[%clk 0:04:47]}
5... Nc6 {[%clk 0:04:45.8]} 6. a3 {[%clk 0:04:41.7]} 6... Bd7 {[%clk 0:04:44.5]}
7. Bd3 {[%clk 0:04:38]} 7... O-O {[%clk 0:04:42]} 8. Nf3 {[%clk 0:04:36]} 8...
Bxg3 {[%clk 0:04:35.1]} 9. hxg3 {[%clk 0:04:33.8]} 9... h6 {[%clk 0:04:29.3]}
10. Ne5 {[%clk 0:04:28.9]} 10... Nxe5 {[%clk 0:04:26.3]} 11. dxe5 {[%clk
0:04:27]} 11... Ne8 {[%clk 0:04:21.5]} 12. Qg4 {[%clk 0:04:19.8]} 12... f6
{[%clk 0:04:07.1]} 13. Qg6 {[%clk 0:04:11.9]} 13... Rf7 {[%clk 0:03:58]} 14.
Rxh6 {[%clk 0:04:06.2]} 14... fxe5 {[%clk 0:03:53.4]} 15. Rh8+ {[%clk
0:03:47.6]} 15... Kxh8 {[%clk 0:03:47.5]} 16. Qxf7 {[%clk 0:03:45]} 1-0

[Event "Live Chess"]
[Site "Chess.com"]
[Date "2024.06.02"]
[Round "-"]
[White "Purple1szed"]
[Black "bonantagulo"]
[Result "0-1"]
[WhiteElo "2076"]
[BlackElo "2252"]
[TimeControl "300"]
[EndTime "2:32:30 PDT"]
[Termination "bonantagulo won by resignation"]

1. e4 {[%clk 0:04:57.3]} 1... c5 {[%clk 0:04:55]} 2. c3 {[%clk 0:04:56.5]} 2...
Nf6 {[%clk 0:04:53.6]} 3. e5 {[%clk 0:04:55.7]} 3... Nd5 {[%clk 0:04:53.1]} 4.
d4 {[%clk 0:04:55.6]} 4... cxd4 {[%clk 0:04:50.9]} 5. cxd4 {[%clk 0:04:55.5]}
5... e6 {[%clk 0:04:50.4]} 6. Nf3 {[%clk 0:04:54.6]} 6... Nc6 {[%clk 0:04:49.9]}
7. Nc3 {[%clk 0:04:54.3]} 7... d6 {[%clk 0:04:45.8]} 8. Bd3 {[%clk 0:04:53.6]}
8... Nxc3 {[%clk 0:04:45]} 9. bxc3 {[%clk 0:04:52.7]} 9... dxe5 {[%clk
0:04:44.5]} 10. dxe5 {[%clk 0:04:52.5]} 10... Qa5 {[%clk 0:04:43]} 11. O-O
{[%clk 0:04:44.1]} 11... Nxe5 {[%clk 0:04:31.6]} 12. Nxe5 {[%clk 0:04:43]} 12...
Qxe5 {[%clk 0:04:31.5]} 13. Re1 {[%clk 0:04:42.7]} 13... Qc7 {[%clk 0:04:25.1]}
14. Bg5 {[%clk 0:04:25.7]} 14... Bd6 {[%clk 0:04:10.3]} 15. Qh5 {[%clk
0:04:16.7]} 15... Bd7 {[%clk 0:03:48.5]} 16. Rab1 {[%clk 0:04:10.1]} 16... b6
{[%clk 0:03:25.9]} 17. Be4 {[%clk 0:04:00.8]} 17... Rc8 {[%clk 0:03:21.1]} 18.
Bd5 {[%clk 0:03:51.8]} 18... Kf8 {[%clk 0:03:08.2]} 19. Bb3 {[%clk 0:03:37.6]}
19... h6 {[%clk 0:02:54.5]} 20. Bh4 {[%clk 0:03:22.1]} 20... g6 {[%clk
0:02:13.3]} 21. Qf3 {[%clk 0:03:12.4]} 21... Bxh2+ {[%clk 0:02:12.3]} 22. Kh1
{[%clk 0:03:11.5]} 22... Qf4 {[%clk 0:02:04.8]} 23. Qh3 {[%clk 0:02:40.3]} 23...
g5 {[%clk 0:01:50.8]} 24. Qxh2 {[%clk 0:02:39]} 24... Qxh4 {[%clk 0:01:41.3]}
25. Qxh4 {[%clk 0:02:37.9]} 25... gxh4 {[%clk 0:01:41.2]} 26. Rbc1 {[%clk
0:02:37.7]} 26... Rc5 {[%clk 0:01:24]} 27. Kh2 {[%clk 0:02:31.2]} 27... Rg8
{[%clk 0:01:19.5]} 28. Re3 {[%clk 0:02:28.9]} 28... Bc6 {[%clk 0:01:17.4]} 29.
g3 {[%clk 0:02:28]} 29... hxg3+ {[%clk 0:01:15.9]} 30. fxg3 {[%clk 0:02:27.7]}
30... Rh5+ {[%clk 0:01:12.9]} 31. Kg1 {[%clk 0:02:26.2]} 31... Rh1+ {[%clk
0:01:12.2]} 32. Kf2 {[%clk 0:02:26.1]} 32... Rxc1 {[%clk 0:01:11.7]} 33. Re2
{[%clk 0:02:25.2]} 33... Rxc3 {[%clk 0:01:04.7]} 34. Rd2 {[%clk 0:02:23.7]}
34... Rgxg3 {[%clk 0:01:01.8]} 35. Rd8+ {[%clk 0:02:23.2]} 35... Ke7 {[%clk
0:01:00]} 36. Rh8 {[%clk 0:02:21.7]} 36... Rcf3+ {[%clk 0:00:57.6]} 37. Ke2
{[%clk 0:02:21.2]} 37... Rg2+ {[%clk 0:00:56.5]} 38. Ke1 {[%clk 0:02:20.7]}
38... Rh3 {[%clk 0:00:52.1]} 39. Bc4 {[%clk 0:02:17.5]} 39... Rh1+ {[%clk
0:00:46]} 40. Bf1 {[%clk 0:02:17.1]} 40... Bb5 {[%clk 0:00:45.5]} 0-1

[Event "Live Chess"]
[Site "Chess.com"]
[Date "2024.06.02"]
[Round "-"]
[White "TJ-W"]
[Black "McFim"]
[Result "1-0"]
[WhiteElo "1581"]
[BlackElo "1697"]
[TimeControl "300"]
[EndTime "2:32:30 PDT"]
[Termination "TJ-W won - game abandoned"]

1. e4 {[%clk 0:04:58.3]} 1... c6 {[%clk 0:04:58.7]} 2. d4 {[%clk 0:04:56.5]}
2... d5 {[%clk 0:04:58.6]} 3. Nc3 {[%clk 0:04:56]} 3... dxe4 {[%clk 0:04:57.7]}
4. Nxe4 {[%clk 0:04:55.9]} 4... Nd7 {[%clk 0:04:56.7]} 5. Qe2 {[%clk 0:04:48.2]}
5... Ndf6 {[%clk 0:04:54.9]} 6. Nxf6+ {[%clk 0:04:44.1]} 6... Nxf6 {[%clk
0:04:53.6]} 7. Nf3 {[%clk 0:04:41.7]} 7... Bg4 {[%clk 0:04:52.2]} 8. g3 {[%clk
0:04:41.2]} 8... e6 {[%clk 0:04:50.5]} 9. c3 {[%clk 0:04:38.9]} 9... Be7 {[%clk
0:04:44.3]} 10. Bg2 {[%clk 0:04:36.1]} 10... O-O {[%clk 0:04:42.6]} 11. O-O
{[%clk 0:04:34.2]} 11... h6 {[%clk 0:04:40.3]} 12. h3 {[%clk 0:04:32.7]} 12...
Bh5 {[%clk 0:04:35.3]} 13. g4 {[%clk 0:04:27.1]} 13... Bg6 {[%clk 0:04:33.2]}
14. Ne5 {[%clk 0:04:26.3]} 14... Bh7 {[%clk 0:04:30.8]} 15. f4 {[%clk
0:04:22.7]} 15... Qc7 {[%clk 0:04:21.9]} 16. f5 {[%clk 0:04:20.5]} 16... exf5
{[%clk 0:04:18.3]} 17. gxf5 {[%clk 0:04:18.7]} 17... Rae8 {[%clk 0:04:06.8]} 18.
Bf4 {[%clk 0:04:14.4]} 18... Bd6 {[%clk 0:03:59.4]} 19. Rae1 {[%clk 0:04:04]}
19... Bxf5 {[%clk 0:03:46.3]} 20. Kh1 {[%clk 0:03:58.9]} 20... Bh7 {[%clk
0:03:41.9]} 21. Rg1 {[%clk 0:03:46.6]} 21... Nd7 {[%clk 0:03:23.6]} 22. Bxh6
{[%clk 0:03:34.9]} 22... gxh6 {[%clk 0:03:04.1]} 23. Bf3+ {[%clk 0:03:25.7]}
23... Kh8 {[%clk 0:02:58.1]} 24. Nxf7+ {[%clk 0:03:22.8]} 24... Rxf7 {[%clk
0:02:53.9]} 25. Qxe8+ {[%clk 0:03:21.9]} 25... Rf8 {[%clk 0:02:49.5]} 26. Qh5
{[%clk 0:03:06.9]} 26... Bf4 {[%clk 0:02:42.7]} 27. Re7 {[%clk 0:02:56.2]} 27...
Qd6 {[%clk 0:02:27.4]} 28. Rxh7+ {[%clk 0:02:34.9]} 28... Kxh7 {[%clk
0:02:20.9]} 29. Be4+ {[%clk 0:02:32.7]} 29... Kh8 {[%clk 0:02:18.2]} 30. Rg6
{[%clk 0:02:17.6]} 30... Qe7 {[%clk 0:01:59]} 31. Rxh6+ {[%clk 0:02:07]} 31...
Bxh6 {[%clk 0:01:54.6]} 32. Qxh6+ {[%clk 0:02:06.1]} 32... Kg8 {[%clk
0:01:53.5]} 33. Qg6+ {[%clk 0:02:01.2]} 33... Qg7 {[%clk 0:01:50.6]} 34. Qe6+
{[%clk 0:01:52.7]} 1-0